bitfinex/quotes_SOLUSD_20250517
["timestamp","ask_amount","ask_price","bid_price","bid_amount"]
[1747461543963,5.97228858,167.44,167.39,27.19403499]
[1747461544882,4.40943552,167.43,167.39,27.19403499]
[1747461545382,10.38208279,167.43,167.39,21.22]
[1747461545754,5.97264727,167.43,167.39,21.22]
[1747461546170,31.9723873,167.44,167.39,21.22]
[1747461546579,5.97121872,167.47,167.4,18.64964886]
[1747461546775,4.14836949,167.49,167.4,18.64964886]
[1747461546982,4.14836949,167.49,167.4,100.74964886]
[1747461547285,53.51354388,167.48,167.4,82.1]
[1747461548284,4.41026629,167.47,167.4,82.1]
[1747461548462,4.41026629,167.47,167.4,88.07359863]
[1747461549283,5.9715753,167.46,167.4,88.07359863]
[1747461549782,4.41026629,167.47,167.41,18.64964886]
[1747461549979,31.97119206,167.48,167.41,100.74964886]
[1747461550457,5.96979284,167.51,167.41,100.74964886]
[1747461550985,5.96979284,167.51,167.41,261.44964886]
[1747461551175,36.11787693,167.52,167.45,18.64964886]
[1747461551484,5.96918845,167.53,167.47,18.64964886]
[1747461554489,31.96875306,167.54,167.47,24.62084816]
[1747461556285,31.96875306,167.54,167.47,106.72084816]
[1747461556891,31.96875306,167.54,167.47,100.74964886]
[1747461557974,26.0,167.5,167.38,2.98209017]
[1747461558278,26.0,167.5,167.4,18.64964886]
[1747461558975,20.89676995,167.49,167.4,18.64964886]
[1747461560885,20.89676995,167.49,167.4,24.62327702]
[1747461561472,5.9705057,167.49,167.4,24.62327702]
[1747461562094,5.9705057,167.49,167.4,50.62327702]
[1747461562801,5.97014925,167.5,167.4,50.62327702]
[1747461565407,14.92136865,167.55,167.42,18.64964886]
[1747461565584,26.0,167.52,167.42,235.44964886]
[1747461565974,14.92180971,167.54,167.44,18.64964886]
[1747461566186,14.92180971,167.54,167.45,41.44]
[1747461566384,26.0,167.51,167.45,41.44]
[1747461566584,26.0,167.51,167.45,123.54]
[1747461566896,5.97014925,167.5,167.45,123.54]
[1747461568101,31.969899,167.51,167.45,123.54]
[1747461568282,26.0,167.51,167.46,18.64964886]
[1747461570805,31.96987431,167.51,167.46,18.64964886]
[1747461571302,31.96987431,167.51,167.46,100.74964886]
[1747461571597,31.969824,167.51,167.46,106.72114986]
[1747461571801,31.969824,167.51,167.46,82.1]
[1747461573596,46.89430612,167.51,167.46,82.1]
[1747461574312,46.89430612,167.51,167.45,123.54]
[1747461577904,46.89430612,167.51,167.45,102.86]
[1747461578114,31.969824,167.51,167.46,20.48]
[1747461580240,31.969824,167.51,167.46,102.58]
[1747461582520,31.96908016,167.53,167.46,102.58]
[1747461583799,31.96916834,167.53,167.47,18.64964886]
[1747461586301,31.96916834,167.53,167.47,100.74964886]
[1747461587419,26.0,167.53,167.47,106.72067419]
[1747461587737,31.96921891,167.53,167.47,106.72067419]
[1747461589112,31.96921891,167.53,167.47,100.74964886]
[1747461591824,31.96921891,167.53,167.47,106.7208037]
[1747461592500,31.96921891,167.53,167.47,100.74964886]
[1747461594320,46.89191932,167.53,167.47,82.1]
[1747461594521,46.89191932,167.53,167.48,20.26]
[1747461596719,46.89191932,167.53,167.46,88.54]
[1747461599113,46.89191932,167.53,167.47,20.3]
[1747461600524,31.96921891,167.53,167.47,20.3]
[1747461601029,31.96921891,167.53,167.48,18.64964886]
[1747461601217,5.96836765,167.55,167.48,24.62040149]
[1747461601407,31.96836765,167.55,167.48,86.94964886]
[1747461601598,31.96836765,167.55,167.48,92.9204335]
[1747461601801,5.70086949,167.6,167.54,18.64964886]
[1747461601802,4.14836949,167.6,167.54,18.64964886]
[1747461602017,4.14836949,167.6,167.56,18.64964886]
[1747461603133,9.22271641,167.63,167.56,18.64964886]
[1747461603338,15.18829298,167.63,167.56,24.61742099]
[1747461603825,9.22271641,167.63,167.56,24.61742099]
[1747461604023,9.22271641,167.63,167.58,18.64964886]
[1747461604243,26.0,167.65,167.58,18.64964886]
[1747461604910,31.96480763,167.65,167.56,24.61742099]
[1747461605406,31.96480763,167.65,167.57,18.64964886]
[1747461607430,31.96480763,167.65,167.58,5.9672992]
[1747461607728,26.0,167.65,167.58,5.9672992]
[1747461607909,31.96486119,167.65,167.58,5.9672992]
[1747461609029,31.96486119,167.65,167.57,5.9676553]
[1747461610224,31.96486119,167.65,167.59,5.96694313]
[1747461610412,31.96486119,167.65,167.6,18.64964886]
[1747461610611,7.5169249,167.67,167.61,20.3]
[1747461610910,32.4919,167.68,167.62,18.64964886]
[1747461610911,5.96382211,167.68,167.62,18.64964886]
[1747461611106,1.5924,167.7,167.62,86.94964886]
[1747461611428,26.0,167.69,167.62,86.94964886]
[1747461611727,31.96348436,167.69,167.62,86.94964886]
[1747461612628,26.0,167.69,167.64,18.64964886]
[1747461612828,31.9634522,167.69,167.64,18.64964886]
[1747461613326,5.96267366,167.71,167.64,18.64964886]
[1747461616326,5.96267366,167.71,167.64,86.94964886]
[1747461617429,20.86935781,167.71,167.64,68.3]
[1747461620739,5.96267366,167.71,167.64,68.3]
[1747461621311,26.0,167.72,167.64,74.26507176]
[1747461622733,31.96267366,167.71,167.64,74.26507176]
[1747461623708,31.96267366,167.71,167.64,68.3]
[1747461623938,31.96267366,167.71,167.65,18.64964886]
[1747461624240,26.0,167.71,167.65,18.64964886]
[1747461624541,31.96267488,167.71,167.64,68.3]
[1747461624923,31.96267488,167.71,167.65,18.64964886]
[1747461625521,31.96205164,167.73,167.65,18.64964886]
[1747461625824,5.96205164,167.73,167.67,18.64964886]
[1747461626028,5.96205164,167.73,167.68,40.2]
[1747461626227,5.96205164,167.73,167.68,108.5]
[1747461628823,31.96168889,167.74,167.68,114.46368979]
[1747461630041,31.96168889,167.74,167.68,108.5]
[1747461632252,31.96168889,167.74,167.68,108.44062763]
[1747461632826,31.96168889,167.74,167.68,114.40427437]
[1747461633031,31.96168889,167.74,167.68,108.44062763]
[1747461640359,5.96168889,167.74,167.69,18.64964886]
[1747461642366,5.96125186,167.75,167.69,18.64964886]
[1747461644961,5.96125186,167.75,167.69,24.61303044]
[1747461645267,5.96125186,167.75,167.69,18.64964886]
[1747461646175,20.86228107,167.77,167.69,18.64964886]
[1747461646356,20.86228107,167.77,167.69,86.94964886]
[1747461648167,20.86228107,167.77,167.69,92.9129026]
[1747461648570,20.86228107,167.77,167.69,86.94964886]
[1747461648872,20.86228107,167.77,167.69,92.91299987]
[1747461652554,5.96054121,167.77,167.69,116.67299987]
[1747461654168,5.95912043,167.81,167.72,26.0]
[1747461654368,5.95912043,167.81,167.72,94.3]
[1747461654771,5.95912043,167.81,167.73,18.64964886]
[1747461654954,5.95912043,167.81,167.75,18.64964886]
[1747461655356,5.95912043,167.81,167.75,24.61089722]
[1747461655563,5.9588232,167.82,167.75,92.91089722]
[1747461656573,5.95805529,167.84,167.75,92.91089722]
[1747461657069,6.4305,167.89,167.75,92.91089722]
[1747461657070,5.95663569,167.88,167.75,131.57402687]
[1747461657291,26.0,167.85,167.75,131.57402687]
[1747461658073,5.95663569,167.88,167.75,131.57402687]
[1747461658280,31.9578097,167.85,167.75,131.57402687]
[1747461658788,31.9578097,167.85,167.75,116.67089722]
[1747461660291,46.85206051,167.85,167.75,86.94964886]
[1747461660483,46.85206051,167.85,167.76,40.08]
[1747461661367,46.85206051,167.85,167.77,18.64964886]
[1747461662661,31.9578097,167.85,167.77,247.67015702]
[1747461664269,31.9578097,167.85,167.77,315.97015702]
[1747461670986,31.9578097,167.85,167.77,310.00964886]
[1747461671473,31.9578097,167.85,167.77,315.97013838]
[1747461673269,46.85206051,167.85,167.77,310.00964886]
[1747461675921,46.85206051,167.85,167.77,315.97012132]
[1747461676711,31.9578097,167.85,167.77,315.97012132]
[1747461681925,31.9578097,167.85,167.79,18.64964886]
[1747461682210,31.9578097,167.85,167.79,86.94964886]
[1747461684216,5.95745722,167.86,167.79,94.55843009]
[1747461686415,31.95706678,167.87,167.79,94.55843009]
[1747461686595,26.0,167.86,167.79,94.55843009]
[1747461687518,31.95739577,167.86,167.79,94.55843009]
[1747461688100,5.95739577,167.86,167.79,94.55843009]
[1747461688495,5.95663569,167.88,167.79,94.55843009]
[1747461691530,5.95663569,167.88,167.81,18.64964886]
[1747461691706,5.95663569,167.88,167.82,20.02]
[1747461694042,5.95663569,167.88,167.82,25.97871864]
[1747461694347,5.95663569,167.88,167.82,94.27871864]
[1747461694509,5.95663569,167.88,167.82,88.32]
[1747461696537,5.95663569,167.88,167.83,20.0]
[1747461696833,14.88870472,167.92,167.84,18.64964886]
[1747461697008,6.1551,167.93,167.84,86.94964886]
[1747461697324,31.95521676,167.92,167.84,86.94964886]
[1747461697702,26.0,167.92,167.84,86.94964886]
[1747461697933,5.95344406,167.97,167.86,18.64964886]
[1747461698110,26.0,167.98,167.87,5.95699052]
[1747461698310,26.0,167.98,167.89,18.64964886]
[1747461698511,26.0,167.98,167.9,20.0]
[1747461699237,5.95344406,167.97,167.9,20.0]
[1747461699531,26.0,167.94,167.9,20.0]
[1747461701343,31.95449141,167.95,167.9,20.0]
[1747461703239,31.95449141,167.95,167.9,88.3]
[1747461707865,26.0,167.96,167.91,18.64964886]
[1747461709537,31.95396694,167.96,167.91,18.64964886]
[1747461709720,31.95396694,167.96,167.91,24.6051333]
[1747461710225,5.95333871,167.98,167.91,24.6051333]
[1747461710446,31.95333871,167.98,167.91,92.9051333]
[1747461714735,26.0,168.0,167.91,94.5449333]
[1747461715447,1.5214,168.07,167.95,18.64964886]
[1747461715751,26.0,168.05,167.96,39.96]
[1747461716058,20.82589551,168.06,167.96,45.91368563]
[1747461716362,26.0,168.05,167.97,18.64964886]
[1747461716758,20.82589551,168.06,167.97,18.64964886]
[1747461717063,26.0,168.05,167.97,18.64964886]
[1747461717444,5.95096405,168.04,167.97,18.64964886]
[1747461719244,5.95096405,168.04,167.97,86.94964886]
[1747461719645,5.95096405,168.04,167.97,92.90303706]
[1747461722064,5.95096405,168.04,167.97,118.32723706]
[1747461722943,26.0,168.05,167.97,118.32723706]
[1747461723267,31.95069351,168.05,167.97,118.32723706]
[1747461723561,1.5898,168.11,167.99,18.64964886]
[1747461723955,5.94883997,168.1,168.01,18.64964886]
[1747461724269,5.94883997,168.1,168.0,5.95238095]
[1747461724270,5.94883997,168.1,168.03,18.64964886]
[1747461724564,26.0,168.09,168.03,86.94964886]
[1747461725043,19.7087758,168.15,168.05,18.64964886]
[1747461725367,26.0,168.12,168.05,18.64964886]
[1747461725560,25.5,168.12,168.05,86.94964886]
[1747461726064,5.94742476,168.14,168.05,86.94964886]
[1747461726256,14.86826137,168.15,168.07,18.64964886]
[1747461726448,14.86826137,168.15,168.08,39.92]
[1747461726774,1.5898,168.17,168.09,17.64964886]
[1747461726775,7.53622573,168.17,168.09,17.64964886]
[1747461726977,7.53622573,168.17,168.09,85.94964886]
[1747461727262,5.94599832,168.19,168.09,85.94964886]
[1747461727660,5.944243,168.23,168.1,1.6414]
[1747461727859,5.944243,168.23,168.12,26.0]
[1747461728167,20.80031108,168.27,168.12,26.0]
[1747461728368,5.94282997,168.27,168.14,6.5309]
[1747461728544,5.94282997,168.27,168.15,40.06]
[1747461728742,5.94282997,168.27,168.16,18.64964886]
[1747461728965,5.94282997,168.27,168.17,222.72]
[1747461729173,5.94282997,168.27,168.18,18.64964886]
[1747461729355,5.94177064,168.3,168.18,20.29104886]
[1747461729555,26.0,168.29,168.18,20.29104886]
[1747461729751,19.31251328,168.31,168.18,46.29104886]
[1747461729954,45.31251328,168.31,168.18,46.29104886]
[1747461730358,19.31251328,168.31,168.21,26.0]
[1747461730555,9.22271641,168.31,168.22,58.68964886]
[1747461731159,15.16426511,168.31,168.22,58.68964886]
[1747461732359,5.9415487,168.31,168.24,18.64964886]
[1747461732668,5.9415487,168.31,168.22,40.04]
[1747461732871,5.9415487,168.31,168.23,18.64964886]
[1747461734273,5.9415487,168.31,168.24,5.94388968]
[1747461734452,5.9415487,168.31,168.23,18.64964886]
[1747461734655,5.9415487,168.31,168.24,5.94388968]
[1747461734853,5.9415487,168.31,168.23,18.64964886]
[1747461736282,5.94106463,168.32,168.23,86.94964886]
[1747461736570,20.79372622,168.32,168.24,39.96]
[1747461736948,20.79372622,168.32,168.23,86.94964886]
[1747461737150,20.79372622,168.32,168.24,39.96]
[1747461739473,26.0,168.3,168.24,39.96]
[1747461741083,5.94212371,168.29,168.24,39.96]
[1747461742389,5.94212371,168.29,168.24,108.26]
[1747461743087,8.0074,168.36,168.24,108.26]
[1747461743088,20.79039537,168.35,168.25,18.64964886]
[1747461743573,26.0,168.34,168.25,18.64964886]
[1747461744295,5.94071169,168.33,168.27,18.64964886]
[1747461745867,5.94071169,168.33,168.25,24.59310382]
[1747461746274,5.94071169,168.33,168.27,18.64964886]
[1747461748261,20.79249093,168.33,168.26,222.42]
[1747461749196,5.94071169,168.33,168.26,222.42]
[1747461749388,5.94071169,168.33,168.27,18.64964886]
[1747461750169,26.0,168.33,168.27,18.64964886]
[1747461751074,26.0,168.33,168.26,222.42]
[1747461751075,46.79249093,168.33,168.26,222.42]
[1747461751293,46.79249093,168.33,168.26,290.72]
[1747461751882,31.94071169,168.33,168.27,40.02]
[1747461752602,31.94071169,168.33,168.28,18.64964886]
[1747461752801,31.94071169,168.33,168.28,86.94964886]
[1747461753501,5.94000594,168.35,168.28,86.94964886]
[1747461753802,26.0,168.31,168.26,222.42]
[1747461753980,26.0,168.32,168.26,242.34]
[1747461754675,5.94141762,168.31,168.26,242.34]
[1747461755108,20.79496167,168.31,168.26,242.34]
[1747461756789,14.85354405,168.31,168.26,242.34]
[1747461759491,14.85354405,168.31,168.26,19.92]
[1747461760705,40.85354405,168.31,168.26,19.92]
[1747461760927,26.0,168.28,168.26,19.92]
[1747461761782,5.94282997,168.27,168.26,19.92]
[1747461768717,31.94247682,168.28,168.26,19.92]
[1747461784818,5.94115753,168.32,168.26,25.86296967]
[1747461785001,5.94115753,168.32,168.26,39.92]
[1747461785200,5.94079523,168.33,168.27,18.64964886]
[1747461785607,31.94038678,168.34,168.27,18.64964886]
[1747461785905,14.84887663,168.37,168.27,18.64964886]
[1747461785906,5.93930035,168.37,168.27,18.64964886]
[1747461786120,26.0,168.36,168.27,86.94964886]
[1747461786301,5.93902263,168.38,168.27,86.94964886]
[1747461786638,31.93902263,168.38,168.29,18.64964886]
[1747461786810,31.93902263,168.38,168.3,5.94177064]
[1747461787410,31.93902263,168.38,168.29,24.5916647]
[1747461787611,46.78639167,168.38,168.29,18.64964886]
[1747461788035,46.78639167,168.38,168.29,24.59170462]
[1747461788514,46.78639167,168.38,168.29,18.64964886]
[1747461789533,31.93902263,168.38,168.29,24.59160582]
[1747461790336,26.0,168.38,168.29,92.89160582]
[1747461790628,7.702,168.42,168.29,92.89160582]
[1747461790629,31.93831276,168.4,168.31,18.64964886]
[1747461790809,5.93831276,168.4,168.32,46.4159]
[1747461792039,5.93831276,168.4,168.34,18.64964886]
[1747461793419,31.93831276,168.4,168.34,18.64964886]
[1747461793606,5.93831276,168.4,168.34,18.64964886]
[1747461794212,5.93788967,168.41,168.34,18.64964886]
[1747461795336,20.78261385,168.41,168.32,46.4159]
[1747461795510,20.78261385,168.41,168.32,46.00101603]
[1747461796532,20.78261385,168.41,168.32,40.06]
[1747461796732,26.0,168.38,168.32,40.06]
[1747461797339,26.0,168.4,168.33,18.64964886]
[1747461797835,33.53192732,168.42,168.33,18.64964886]
[1747461798034,26.0,168.41,168.33,86.94964886]
[1747461798544,26.0,168.43,168.34,5.94035879]
[1747461799723,5.9375371,168.42,168.34,5.94035879]
[1747461799924,31.93721192,168.43,168.36,18.64964886]
[1747461800718,31.93721192,168.43,168.36,86.94964886]
[1747461800719,26.0,168.43,168.36,86.94964886]
[1747461800936,31.93730971,168.43,168.36,86.94964886]
[1747461801238,26.0,168.43,168.36,86.94964886]
[1747461801540,31.93731283,168.43,168.36,86.94964886]
[1747461801945,5.93731283,168.43,168.38,18.64964886]
[1747461802240,5.93731283,168.43,168.39,20.1]
[1747461802440,26.0,168.46,168.4,18.64964886]
[1747461802738,5.93623443,168.46,168.4,86.94964886]
[1747461802936,5.93584794,168.47,168.4,86.94964886]
[1747461803445,1.5998,168.5,168.4,86.94964886]
[1747461803621,7.5345956,168.5,168.4,86.94964886]
[1747461804021,5.9347956,168.5,168.42,18.64964886]
[1747461804948,5.9347956,168.5,168.4,68.3]
[1747461805348,26.0,168.47,168.4,68.3]
[1747461805519,27.637,168.47,168.4,68.3]
[1747461806030,20.77644544,168.46,168.39,40.12]
[1747461807327,5.93612727,168.46,168.39,40.12]
[1747461808351,5.93612727,168.46,168.39,46.05857187]
[1747461808851,5.93612727,168.46,168.39,40.12]
[1747461810735,5.93612727,168.46,168.39,46.05849842]
[1747461811342,5.93612727,168.46,168.39,114.35849842]
[1747461811846,7.57288225,168.47,168.39,114.35849842]
[1747461812049,5.93553136,168.48,168.39,114.35849842]
[1747461812234,5.93553136,168.48,168.4,18.64964886]
[1747461813835,40.83735814,168.5,168.4,18.64964886]
[1747461813836,5.93507033,168.49,168.4,24.58774704]
[1747461814043,5.93507033,168.49,168.4,92.88774704]
[1747461817239,5.93507033,168.49,168.4,227.58774704]
[1747461817634,5.93507033,168.49,168.42,18.64964886]
[1747461817957,5.93507033,168.49,168.43,5.93718458]
[1747461818153,5.93507033,168.49,168.42,18.64964886]
[1747461818955,5.93507033,168.49,168.42,24.58713168]
[1747461819741,5.9347181,168.5,168.42,24.58713168]
[1747461822926,20.97357855,168.53,168.42,92.88713168]
[1747461822927,5.93401376,168.52,168.42,92.88713168]
[1747461823738,5.93401376,168.52,168.42,107.73097445]
[1747461826068,16.40898689,168.59,168.47,1.5975]
[1747461826285,16.40898689,168.59,168.49,18.64964886]
[1747461826466,16.40898689,168.59,168.48,40.02]
[1747461826467,42.40898689,168.59,168.48,40.02]
[1747461826958,42.40898689,168.59,168.49,18.64964886]
[1747461827160,5.93190176,168.58,168.5,5.9347181]
[1747461827649,33.51165623,168.59,168.51,18.64964886]
[1747461828007,33.51165623,168.59,168.51,86.94964886]
[1747461828178,33.51165623,168.59,168.51,68.3]
[1747461829186,33.51165623,168.59,168.51,74.23423109]
[1747461829548,7.51165623,168.59,168.51,74.23423109]
[1747461829949,5.93155623,168.59,168.51,74.23423109]
[1747461830181,6.3106,168.61,168.52,18.64964886]
[1747461830367,5.9304946,168.62,168.52,240.74964886]
[1747461830688,31.9304946,168.62,168.52,240.74964886]
[1747461831387,31.9304946,168.62,168.52,246.68360913]
[1747461831551,46.7567311,168.62,168.52,222.1]
[1747461831756,5.9304946,168.62,168.53,18.64964886]
[1747461832093,5.9304946,168.62,168.54,40.02]
[1747461832879,20.7567311,168.62,168.54,40.02]
[1747461833395,14.8262365,168.62,168.54,40.02]
[1747461833762,5.92979127,168.64,168.55,18.64964886]
[1747461835285,5.92979127,168.64,168.56,5.9326056]
[1747461835535,5.92979127,168.64,168.57,18.64964886]
[1747461836896,31.92943966,168.65,168.57,5.93220581]
[1747461837274,5.92943966,168.65,168.57,5.93220581]
[1747461838070,5.9290881,168.66,168.57,18.64964886]
[1747461839200,5.9290881,168.66,168.57,5.93214355]
[1747461840003,46.75180836,168.66,168.56,24.58216332]
[1747461840512,31.9290881,168.66,168.56,24.58216332]
[1747461840999,31.9283851,168.68,168.56,39.41367732]
[1747461841294,5.9283851,168.68,168.58,18.64964886]
[1747461841595,5.92801395,168.7,168.58,18.64964886]
[1747461842708,5.92801395,168.7,168.6,18.64964886]
[1747461842911,5.92801395,168.7,168.61,39.96]
[1747461843074,20.74721964,168.7,168.61,39.96]
[1747461843800,20.74721964,168.7,168.6,68.3]
[1747461844097,26.0,168.67,168.57,1.5966]
[1747461844400,26.0,168.67,168.61,19.96]
[1747461844773,46.75180836,168.66,168.61,19.96]
[1747461845212,6.2068,168.65,168.61,19.96]
[1747461846916,5.92979127,168.64,168.61,19.96]
[1747461848528,1.5045,168.71,168.62,18.64964886]
[1747461848820,5.92768227,168.7,168.62,18.64964886]
[1747461849395,5.92768227,168.7,168.62,24.58009576]
[1747461850296,5.92662834,168.73,168.62,24.58009576]
[1747461850497,20.73755093,168.78,168.64,18.64964886]
[1747461850707,5.92487261,168.78,168.66,18.64964886]
[1747461850913,5.92487261,168.78,168.69,5.92803367]
[1747461851430,20.72977331,168.84,168.7,18.64964886]
[1747461851631,20.72977331,168.84,168.72,18.64964886]
[1747461851797,20.72977331,168.84,168.74,18.64964886]
[1747461852102,5.92276711,168.84,168.74,18.64964886]
[1747461852501,5.92206561,168.86,168.74,18.64964886]
[1747461852990,5.92206561,168.86,168.75,5.92592592]
[1747461854004,20.72109407,168.91,168.75,5.92592592]
[1747461854193,26.0,168.88,168.75,5.92592592]
[1747461855118,5.92171492,168.87,168.75,5.92592592]
[1747461855925,5.92171492,168.87,168.76,18.64964886]
[1747461856221,5.92171492,168.87,168.77,20.02]
[1747461856413,14.80428732,168.87,168.77,20.02]
[1747461857091,14.80428732,168.87,168.76,18.64964886]
[1747461857298,26.0,168.85,168.77,19.96]
[1747461858206,26.0,168.84,168.77,19.96]
[1747461858401,26.0,168.84,168.7,69.8314]
[1747461858603,26.0,168.79,168.71,39.96]
[1747461860627,5.92487261,168.78,168.71,39.96]
[1747461863236,20.73705414,168.78,168.71,39.96]
[1747461867317,26.0,168.75,168.71,39.96]
[1747461867518,5.92627711,168.74,168.71,39.96]
[1747461874340,5.92627711,168.74,168.71,19.96]
[1747461877427,26.0,168.72,168.71,19.96]
[1747461878031,31.92697961,168.72,168.71,19.96]
[1747461885255,46.74442863,168.72,168.66,20.02]
[1747461886645,76.37932668,168.72,168.66,20.02]
[1747461888147,46.74442863,168.72,168.66,20.02]
[1747461894736,46.74442863,168.72,168.65,20.02]
[1747461898159,76.37932668,168.72,168.65,20.02]
[1747461898461,26.0,168.68,168.65,20.02]
[1747461899666,5.92873658,168.67,168.65,20.02]
[1747461902164,26.0,168.64,168.6,19.9]
[1747461903466,22.33547804,168.67,168.6,19.9]
[1747461903651,26.0,168.66,168.6,19.9]
[1747461904156,20.75303882,168.65,168.6,19.9]
[1747461908664,26.0,168.62,168.6,19.9]
[1747461909970,5.93084633,168.61,168.6,19.9]
[1747461914267,20.75796215,168.61,168.55,19.92]
[1747461914473,26.0,168.58,168.55,19.92]
[1747461916175,5.93225366,168.57,168.55,19.92]
[1747461916475,31.93199009,168.58,168.55,19.92]
[1747461916666,31.9311981,168.6,168.55,19.92]
[1747461917776,46.75919335,168.6,168.55,19.92]
[1747461921450,5.9326056,168.56,168.55,19.92]
[1747461927179,5.93190176,168.58,168.55,19.92]
[1747461931588,20.76165617,168.58,168.55,19.92]
[1747461931889,5.93190176,168.58,168.55,19.92]
[1747461938693,20.76165617,168.58,168.52,19.92]
[1747461942968,26.0,168.54,168.45,226.29901162]
[1747461943184,26.0,168.54,168.45,241.96]
[1747461944394,20.77274615,168.49,168.44,4.25901162]
[1747461945812,20.77274615,168.49,168.42,19.92]
[1747461946805,5.93647966,168.45,168.42,19.92]
[1747461948186,5.93612727,168.46,168.42,19.92]
[1747461951381,26.0,168.44,168.42,19.92]
[1747461951790,26.0,168.44,168.42,18.92]
[1747461952287,20.77644544,168.46,168.42,18.92]
[1747461952477,26.0,168.45,168.42,18.92]
[1747461953604,5.9368321,168.44,168.42,18.92]
[1747461954681,20.77644544,168.46,168.42,18.92]
[1747461955403,5.93612727,168.46,168.42,18.92]
[1747461957612,20.77644544,168.46,168.42,18.92]
[1747461960033,5.93612727,168.46,168.42,18.92]
[1747461962432,5.93436591,168.51,168.43,1.6461]
[1747461962600,5.9333096,168.54,168.44,18.64964886]
[1747461962926,31.9333096,168.54,168.44,18.64964886]
[1747461963102,31.9333096,168.54,168.44,86.94964886]
[1747461963103,5.9333096,168.54,168.44,86.94964886]
[1747461963724,5.9333096,168.54,168.46,18.64964886]
[1747461965925,20.76226321,168.58,168.47,5.93577491]
[1747461966126,20.76226321,168.58,168.48,58.48964886]
[1747461966530,26.0,168.57,168.48,58.48964886]
[1747461967232,5.9326056,168.56,168.48,64.42505777]
[1747461970229,20.7641196,168.56,168.48,19.92]
[1747461970425,20.7641196,168.56,168.48,39.84]
[1747461973646,20.7641196,168.56,168.48,19.92]
[1747461975151,50.4271476,168.56,168.48,19.92]
[1747461976051,20.7641196,168.56,168.48,19.92]
[1747461979137,26.0,168.53,168.48,19.92]
[1747461980451,20.7641196,168.56,168.48,19.92]
[1747461980642,26.0,168.55,168.48,19.92]
[1747461980947,5.9333096,168.54,168.48,19.92]
[1747461981315,5.9333096,168.54,168.48,25.85539407]
[1747461982227,5.9333096,168.54,168.48,94.15539407]
[1747461983045,5.9326056,168.56,168.48,88.22]
[1747461984250,5.9333096,168.54,168.48,88.22]
[1747461985239,5.9333096,168.54,168.48,19.92]
[1747461986256,20.7641196,168.56,168.48,19.92]
[1747461986657,20.7641196,168.56,168.48,25.85540551]
[1747461986824,5.9326056,168.56,168.48,19.92]
[1747461987230,20.7641196,168.56,168.48,19.92]
[1747461988133,20.7641196,168.56,168.48,39.82]
[1747461989358,26.0,168.54,168.48,19.92]
[1747461990236,76.92286507,168.53,168.48,19.92]
[1747461991262,5.93401376,168.52,168.48,19.92]
[1747461991444,82.85664484,168.53,168.48,19.92]
[1747461995070,76.92286507,168.53,168.49,18.64964886]
[1747461996058,82.85655299,168.53,168.48,19.92]
[1747462006948,76.92286507,168.53,168.49,18.64964886]
[1747462007562,76.92286507,168.53,168.49,86.94964886]
[1747462008192,82.85661756,168.53,168.49,86.94964886]
[1747462008467,82.85661756,168.53,168.49,68.3]
[1747462012277,82.85661756,168.53,168.48,19.92]
[1747462014586,20.76557246,168.55,168.48,19.92]
[1747462014771,1.5169,168.53,168.48,19.92]
[1747462016760,5.93401376,168.52,168.48,19.92]
[1747462021571,5.93376903,168.53,168.48,19.92]
[1747462021773,26.0,168.55,168.48,25.85536168]
[1747462021977,26.0,168.55,168.49,18.64964886]
[1747462022797,5.93225366,168.57,168.49,86.94964886]
[1747462022968,7.55082437,168.58,168.51,18.64964886]
[1747462023171,33.55082437,168.58,168.51,38.50964886]
[1747462026201,33.55082437,168.58,168.51,44.44400083]
[1747462026774,31.93202437,168.58,168.51,44.44400083]
[1747462028902,31.93202437,168.58,168.51,38.50964886]
[1747462029076,31.93202437,168.58,168.51,24.07904539]
[1747462029272,46.76177878,168.58,168.52,19.86]
[1747462030914,31.93202437,168.58,168.52,19.86]
[1747462034983,46.76177878,168.58,168.52,19.86]
[1747462036702,31.93202437,168.58,168.52,19.86]
[1747462038516,31.93202437,168.58,168.52,25.79394254]
[1747462040304,31.93202437,168.58,168.52,19.86]
[1747462042994,46.76177878,168.58,168.52,19.86]
[1747462046606,31.93202437,168.58,168.52,25.79393891]
[1747462047007,31.93202437,168.58,168.52,19.86]
[1747462047715,31.9311981,168.6,168.53,18.64964886]